fUSD/lending_fUSD_20240921
["ID","MTS","AMOUNT","RATE_DAILY","PERIOD"]
[338833162,1726931450853,-500.0,0.00014999,2]
[338833163,1726931450863,-500.0,0.00014999,2]
[338833164,1726931450872,-500.0,0.00014999,2]
[338833165,1726931450881,-500.0,0.00014999,2]
[338833166,1726931450891,-500.0,0.00014999,2]
[338833167,1726931450900,-500.0,0.00014999,2]
[338833168,1726931450910,-352.74,0.00014999,2]
[338833169,1726931450919,-500.0,0.00014999,2]
[338833170,1726931450928,-500.0,0.00014999,2]
[338833171,1726931450937,-500.0,0.00014999,2]
[338833172,1726931450946,-500.0,0.00014999,2]
[338833173,1726931450955,-444.36,0.00014999,2]
[338833174,1726931450964,-500.0,0.00014999,2]
[338833175,1726931450973,-500.0,0.00014999,2]
[338833176,1726931450985,-551.73796334,0.00014999,2]
[338833177,1726931450994,-329.79,0.00014999,2]
[338833178,1726931451006,-500.0,0.00014999,2]
[338833179,1726931451014,-500.0,0.00014999,2]
[338833180,1726931451023,-500.0,0.00014999,2]
[338833181,1726931451033,-500.0,0.00014999,2]
[338833182,1726931451042,-500.0,0.00014999,2]
[338833183,1726931451051,-472.93,0.00014999,2]
[338833184,1726931451060,-500.0,0.00014999,2]
[338833185,1726931451070,-500.0,0.00014999,2]
[338833186,1726931451080,-500.0,0.00014999,2]
[338833187,1726931451089,-457.04,0.00014999,2]
[338833188,1726931451098,-500.0,0.00014999,2]
[338833189,1726931451108,-500.0,0.00014999,2]
[338833190,1726931451117,-500.0,0.00014999,2]
[338833191,1726931451127,-500.0,0.00014999,2]
[338833192,1726931451136,-500.0,0.00014999,2]
[338833193,1726931451145,-462.76,0.00014999,2]
[338833194,1726931451155,-500.0,0.00014999,2]
[338833195,1726931451164,-500.0,0.00014999,2]
[338833196,1726931451174,-500.0,0.00014999,2]
[338833197,1726931451183,-500.0,0.00014999,2]
[338833198,1726931451192,-500.0,0.00014999,2]
[338833199,1726931451202,-500.0,0.00014999,2]
[338833200,1726931451211,-500.0,0.00014999,2]
[338833201,1726931451221,-201.05,0.00014999,2]
[338833202,1726931451233,-500.0,0.00014999,2]
[338833203,1726931451243,-500.0,0.00014999,2]
[338833204,1726931451252,-500.0,0.00014999,2]
[338833205,1726931451261,-500.0,0.00014999,2]
[338833206,1726931451271,-175.99,0.00014999,2]
[338833207,1726931451280,-500.0,0.00014999,2]
[338833208,1726931451289,-500.0,0.00014999,2]
[338833209,1726931451298,-500.0,0.00014999,2]
[338833210,1726931451307,-500.0,0.00014999,2]
[338833211,1726931451316,-509.89,0.00014999,2]
[338833212,1726931451326,-500.0,0.00014999,2]
[338833213,1726931451335,-500.0,0.00014999,2]
[338833214,1726931451344,-500.0,0.00014999,2]
[338833215,1726931451353,-500.0,0.00014999,2]
[338833216,1726931451362,-500.0,0.00014999,2]
[338833217,1726931451372,-500.0,0.00014999,2]
[338833218,1726931451381,-500.0,0.00014999,2]
[338833219,1726931451391,-500.0,0.00014999,2]
[338833220,1726931451400,-359.05,0.00014999,2]
[338833221,1726931451409,-336.71372401,0.00014999,2]
[338833222,1726931451419,-179.35,0.00014999,2]
[338833223,1726931451428,-500.0,0.00014999,2]
[338833224,1726931451437,-500.0,0.00014999,2]
[338833225,1726931451446,-500.0,0.00014999,2]
[338833226,1726931451456,-500.0,0.00014999,2]
[338833227,1726931451465,-500.0,0.00014999,2]
[338833228,1726931451474,-500.0,0.00014999,2]
[338833229,1726931451486,-590.61,0.00014999,2]
[338833230,1726931451494,-500.0,0.00014999,2]
[338833231,1726931451503,-500.0,0.00014999,2]
[338833232,1726931451512,-188.02,0.00014999,2]
[338833233,1726931451521,-500.0,0.00014999,2]
[338833234,1726931451530,-500.0,0.00014999,2]
[338833235,1726931451539,-500.0,0.00014999,2]
[338833236,1726931451549,-500.0,0.00014999,2]
[338833237,1726931451559,-500.0,0.00014999,2]
[338833238,1726931451568,-500.0,0.00014999,2]
[338833239,1726931451578,-500.0,0.00014999,2]
[338833240,1726931451587,-500.0,0.00014999,2]
[338833241,1726931451598,-500.0,0.00014999,2]
[338833242,1726931451607,-500.0,0.00014999,2]
[338833243,1726931451616,-500.0,0.00014999,2]
[338833244,1726931451626,-500.0,0.00014999,2]
[338833245,1726931451636,-335.85,0.00014999,2]
[338833246,1726931451646,-500.0,0.00014999,2]
[338833247,1726931451657,-500.0,0.00014999,2]
[338833248,1726931451667,-500.0,0.00014999,2]
[338833249,1726931451678,-500.0,0.00014999,2]
[338833250,1726931451688,-500.0,0.00014999,2]
[338833251,1726931451698,-500.0,0.00014999,2]
[338833252,1726931451708,-500.0,0.00014999,2]
[338833253,1726931451718,-500.0,0.00014999,2]
[338833254,1726931451729,-500.0,0.00014999,2]
[338833255,1726931451739,-500.0,0.00014999,2]
[338833256,1726931451748,-500.0,0.00014999,2]
[338833257,1726931451758,-500.0,0.00014999,2]
[338833258,1726931451768,-500.0,0.00014999,2]
[338833259,1726931451779,-500.0,0.00014999,2]
[338833260,1726931451789,-500.0,0.00014999,2]
[338833261,1726931451799,-259.97,0.00014999,2]
[338833262,1726931451810,-500.0,0.00014999,2]
[338833263,1726931451820,-500.0,0.00014999,2]
[338833264,1726931451829,-500.0,0.00014999,2]
[338833265,1726931451839,-282.46,0.00014999,2]
[338833266,1726931451849,-500.0,0.00014999,2]
[338833267,1726931451860,-500.0,0.00014999,2]
[338833268,1726931451869,-315.99,0.00014999,2]
[338833269,1726931451879,-500.0,0.00014999,2]
[338833270,1726931451889,-500.0,0.00014999,2]
[338833271,1726931451898,-500.0,0.00014999,2]
[338833272,1726931451908,-359.99,0.00014999,2]
[338833273,1726931451917,-500.0,0.00014999,2]
[338833274,1726931451927,-500.0,0.00014999,2]
[338833275,1726931451937,-410.600001,0.00014999,2]
[338833276,1726931451946,-14817.46,0.00015,2]
[338833277,1726931451956,-1233275.665525,0.00015,2]
[338833278,1726931451966,-206.13422676,0.00015,2]
[338833279,1726931451975,-7405790.7610303,0.00015,30]
[338833280,1726931452152,-504.11191293,0.00015,30]
[338833281,1726931452163,-808.76872774,0.00015,30]
[338833282,1726931452175,-499.9996419,0.00015,30]
[338833283,1726931452187,-12619.66431674,0.00015,30]
[338833284,1726931452198,-470.73928808,0.00015,30]
[338833285,1726931452213,-1532.55944935,0.00015,30]
[338833286,1726931452225,-617.23,0.00015,30]
[338833287,1726931452238,-861.50000005,0.00015,30]
[338833288,1726931452300,-593.25600002,0.0001452,2]
[338833289,1726931452311,-40.27399998,0.0001452,2]
[338833290,1726931452321,-500.0,0.0001452,2]
[338833291,1726931452330,-500.0,0.0001452,2]
[338833292,1726931452340,-202.15,0.00014597,2]
[338833293,1726931452350,-674.12918332,0.000149,2]
[338833294,1726931452360,-27525.19264918,0.00015,30]
[338833295,1726931452372,-33151.78190244,0.00015,30]
[338833296,1726931452386,-812.4918309,0.00015,30]
[338833297,1726931452398,-4473.77488698,0.00015,30]
[338833298,1726931452463,-500.35069982,0.0001452,2]
[338833299,1726931452472,-302.47715087,0.00015,30]
[338833300,1726931452485,-3219.03157582,0.00015,30]
[338833301,1726931452496,-269.68892623,0.00015,30]
[338833302,1726931452523,-9526.92079785,0.00015,30]
[338833303,1726931452542,-8048.15880081,0.00015,30]
[338833304,1726931452553,-462.8525,0.00015,30]
[338833305,1726931452615,-32796.4075537,0.00015,30]
[338833306,1726931485243,291.60836678,0.00011164,2]
[338833307,1726931498744,413.28,0.00011932,2]
[338833308,1726931568951,632.30942,0.000125,14]
[338833309,1726931590299,632.30942,0.000125,14]
[338833310,1726931611167,632.30946,0.000125,14]
[338833311,1726931680025,632.30942,0.000125,14]
[338833312,1726931699916,250.0,0.00022,120]
[338833313,1726931722922,1055.09315033,0.00022,120]
[338833332,1726932066882,500.0,0.00022,120]
[338833333,1726932067050,176.54,0.00010959,2]
[338833334,1726932067347,500.0,0.00022,120]
[338833335,1726932067502,500.0,0.00022,120]
[338833336,1726932067817,500.0,0.00022,120]
[338833337,1726932068296,500.0,0.00022,120]
[338833338,1726932068801,500.0,0.00022,120]
[338833339,1726932069303,500.0,0.00022,120]
[338833340,1726932069872,500.0,0.00022,120]
[338833341,1726932070346,500.0,0.00022,120]
[338833342,1726932070821,182.96008457,0.00022,120]
[338833343,1726932128860,1050.0,0.00011,2]
[338833344,1726932195737,425.08,0.00010555,2]
[338833346,1726932389460,819.95,0.00010959,2]
[338833347,1726932452658,550.72,0.00011931,2]
[338833350,1726932489237,1852.42,0.00011937,2]
[338833351,1726932489856,500.0,0.00011948,2]
[338833353,1726932568083,1500.0,0.00011899,2]
[338833355,1726932597607,861.76,0.00011914,2]
[338833356,1726932597856,-10732.24,0.00012142,2]
[338833357,1726932597877,-3882.29,0.00012182,2]
[338833358,1726932597898,-250.0,0.00012239,2]
[338833359,1726932597931,-1000.0,0.00012282,2]
[338833360,1726932597953,-400.0,0.000123,4]
[338833361,1726932597973,-161.71,0.00012311,2]
[338833362,1726932597996,-250.0,0.00012398,2]
[338833363,1726932598017,-900.0,0.000124,4]
[338833364,1726932598039,-196.63,0.00012435,2]
[338833365,1726932598060,-1400.0,0.000125,4]
[338833366,1726932598081,-150.99,0.000125,2]
[338833367,1726932598102,-499.99,0.000125,2]
[338833368,1726932598122,-13554.74,0.000125,2]
[338833369,1726932598144,-23900.0,0.00012582,2]
[338833370,1726932598167,-1800.0,0.000126,4]
[338833371,1726932598188,-2300.0,0.000127,4]
[338833372,1726932598210,-400.0,0.000128,4]
[338833373,1726932598231,-425.08,0.00012819,2]
[338833374,1726932598252,-328.0,0.00012889,2]
[338833375,1726932598274,-400.0,0.000129,4]
[338833376,1726932598295,-2401.68288773,0.000129,2]
[338833377,1726932598318,-3046.68818957,0.000129,2]
[338833378,1726932598339,-777.94886218,0.00012913,2]
[338833379,1726932598360,-150.99,0.00012971,2]
[338833380,1726932598381,-328.0,0.00012971,2]
[338833381,1726932598407,-150.0,0.00012972,2]
[338833382,1726932598429,-500.0,0.00012973,2]
[338833383,1726932598449,-388.92563463,0.00012973,2]
[338833384,1726932598471,-500.0,0.00012973,2]
[338833385,1726932598492,-500.0,0.00012973,2]
[338833386,1726932598513,-1000.0,0.00012986,2]
[338833387,1726932598534,-13697.82,0.00012986,2]
[338833388,1726932598555,-6687.92,0.00012986,2]
[338833389,1726932598576,-16865.97,0.00012986,2]
[338833390,1726932598597,-958.85,0.00012986,2]
[338833391,1726932598619,-299.99,0.00012986,2]
[338833392,1726932598640,-250.0,0.0001299,2]
[338833393,1726932598662,-469.07707676,0.00012999,2]
[338833394,1726932598683,-206.7808437,0.00012999,2]
[338833395,1726932598704,-500.0,0.00012999,2]
[338833396,1726932598725,-373.12928111,0.00012999,2]
[338833397,1726932598746,-500.0,0.00012999,2]
[338833398,1726932598768,-500.0,0.00012999,2]
[338833399,1726932598971,-500.0,0.00012999,2]
[338833400,1726932598992,-500.0,0.00012999,2]
[338833401,1726932599016,-632116.18270582,0.00013,2]
[338833402,1726932606718,262.4,0.0001299,2]
[338833403,1726932606960,262.4,0.0001299,2]
[338833404,1726932607188,262.4,0.0001299,2]
[338833405,1726932607434,262.4,0.0001299,2]
[338833406,1726932607666,262.4,0.0001299,2]
[338833407,1726932607891,262.4,0.0001299,2]
[338833408,1726932608132,262.4,0.0001299,2]
[338833409,1726932608366,262.4,0.0001299,2]
[338833410,1726932608603,262.4,0.0001299,2]
[338833411,1726932608822,262.4,0.0001299,2]
[338833412,1726932612776,213.55900717,0.00013,2]
[338833413,1726932614755,-750060.81551133,0.00013,2]
[338833414,1726932620365,164.92,0.00010959,2]
[338833418,1726932632305,-604.0,0.000129,2]
[338833421,1726932632317,-1735.34642973,0.000129,2]
[338833422,1726932632326,-202.8483194,0.000129,2]
[338833423,1726932632336,-500.0,0.00012973,2]
[338833424,1726932632346,-169.16,0.0001299,2]
[338833425,1726932632355,-169.16,0.0001299,2]
[338833426,1726932632364,-169.16,0.0001299,2]
[338833427,1726932632374,-169.16,0.0001299,2]
[338833428,1726932632384,-72.16525087,0.0001299,2]
[338833429,1726932632399,-96.99474913,0.0001299,2]
[338833430,1726932632408,-253.13405707,0.0001299,2]
[338833431,1726932632418,-38750.46277156,0.00013,2]
[338833432,1726932632431,-3568.6202541,0.00013,2]
[338833433,1726932632443,-49233.29817708,0.00013,2]
[338833434,1726932632454,-6319.5,0.00013,2]
[338833435,1726932632466,-13448.09756302,0.00013,2]
[338833437,1726932638518,-500.0,0.00012973,2]
[338833438,1726932638528,-6.26870493,0.00013,2]
[338833439,1726932638539,-399.35491428,0.00013,2]
[338833440,1726932638550,-1759.48135128,0.00013,2]
[338833441,1726932638562,-960688.28600703,0.00013,2]
[338833442,1726932638778,-6315.55173703,0.00013,2]
[338833443,1726932638790,-1835.14668411,0.00013,2]
[338833444,1726932638801,-22833.38855947,0.00013,2]
[338833445,1726932638812,-9553.154996,0.00013,2]
[338833446,1726932638824,-9084.2900005,0.00013,2]
[338833447,1726932638835,-13724.235,0.00013,2]
[338833448,1726932638846,-1384.75,0.00013,2]
[338833449,1726932638856,-5915.5,0.00013,2]
[338833450,1726932638867,-343.85707999,0.00013,2]
[338833451,1726932638878,-60437.37103275,0.00013,2]
[338833452,1726932638908,-2111.13867946,0.00013,2]
[338833453,1726932638919,-14913.977862,0.00013,2]
[338833454,1726932638930,-2249.76838887,0.00013,2]
[338833455,1726932638942,-795.2682055,0.00013,2]
[338833456,1726932638953,-1007.38297438,0.00013,2]
[338833457,1726932638963,-675.54813812,0.00013,2]
[338833458,1726932638975,-5065.1991,0.00013,2]
[338833459,1726932638987,-5696.0751405,0.00013,2]
[338833460,1726932638999,-23634.8659421,0.00013,2]
[338833461,1726932639009,-701.89106013,0.00013,2]
[338833462,1726932639020,-7005.98536701,0.00013,2]
[338833487,1726932640641,-1647.72071355,0.00013,2]
[338833632,1726932643603,-168.64780149,0.000129,2]
[338833633,1726932643613,-1088.80651443,0.00013,2]
[338833642,1726932646361,-328.72306333,0.00013,2]
[338833643,1726932646465,-13755.67873326,0.00013,2]
[338833646,1726932646741,-498.29912691,0.00013,2]
[338833738,1726932647634,-4084.3711218,0.00013,2]
[338833741,1726932647646,-9724.32923828,0.00013,2]
[338833743,1726932647660,-6966.92550264,0.00013,2]
[338833745,1726932647672,-379.482348,0.00013,2]
[338833750,1726932667860,500.0,0.00022,120]
[338833752,1726932708496,678.4,0.00010959,2]
[338833753,1726932709191,500.0,0.00011164,2]
[338833754,1726932750275,678.4,0.00010959,2]
[338833755,1726932775985,375.84490797,0.00011164,2]
[338833756,1726932791628,678.4,0.00010959,2]
[338833757,1726932807664,500.0,0.00011164,2]
[338833758,1726932847375,1077.25,0.00011179,2]
[338833761,1726932982229,-1923.55,0.00012088,2]
[338833762,1726932982251,-200.0,0.00012208,2]
[338833763,1726932982273,-155.39,0.00012272,2]
[338833764,1726932982293,-221.08457551,0.00012316,2]
[338833765,1726932982317,-200.0,0.00012352,2]
[338833766,1726932982338,-221.0845755,0.00012414,2]
[338833767,1726932982358,-555.19,0.00012416,2]
[338833768,1726932982379,-221.0845755,0.00012512,2]
[338833769,1726932982400,-240.17,0.00012612,2]
[338833770,1726932982422,-300.0,0.00012639,2]
[338833771,1726933002386,941.39,0.00012535,2]
[338833772,1726933023193,14769.5109,0.00012172,2]
[338833773,1726933025474,51.54537349,0.00012586,2]
[338833774,1726933066686,220.63506438,0.00021,60]
[338833775,1726933102728,150.02785999,0.00022,120]
[338833782,1726933165613,405.68,0.00010959,2]
[338833793,1726933255895,150.0,0.00011941,2]
[338833794,1726933267212,500.0,0.00022,120]
[338833795,1726933286792,150.0,9.52e-05,2]
[338833796,1726933296956,491.59,0.000119,2]
[338833797,1726933296990,491.59,0.00011903,2]
[338833798,1726933297124,491.59,0.00011906,2]
[338833799,1726933297319,491.59,0.00011909,2]
[338833800,1726933297585,491.59,0.00011913,2]
[338833801,1726933297812,491.59,0.00011916,2]
[338833802,1726933298043,491.59,0.00011919,2]
[338833803,1726933298265,491.59,0.00011922,2]
[338833804,1726933298482,491.59,0.00011925,2]
[338833805,1726933298701,491.59,0.00011928,2]
[338833806,1726933298904,491.59,0.00011931,2]
[338833807,1726933299105,491.59,0.00011934,2]
[338833808,1726933299525,491.59,0.00011938,2]
[338833809,1726933299788,491.59,0.00011941,2]
[338833810,1726933300017,491.59,0.00011944,2]
[338833811,1726933300232,491.59,0.00011947,2]
[338833812,1726933300440,491.59,0.0001195,2]
[338833813,1726933300649,491.59,0.00011953,2]
[338833814,1726933300929,491.59,0.00011956,2]
[338833815,1726933301143,491.59,0.00011959,2]
[338833816,1726933356804,21774.23,0.00011885,2]
[338833817,1726933392917,153.95,0.00013194,120]
[338833818,1726933393060,236.86,0.00013194,120]
[338833819,1726933395737,1056.48,0.00010077,2]
[338833821,1726933411936,150.0,0.00018514,120]
[338833823,1726933432232,250.0,0.00011963,2]
[338833824,1726933496903,179.99297769,0.00011964,2]
[338833826,1726933502556,155.39,0.00011967,2]
[338833827,1726933502593,150.0,0.00011688,2]
[338833828,1726933502981,150.0,0.00011873,2]
[338833829,1726933506959,150.0,0.00011688,2]
[338833830,1726933515586,150.0,0.00011688,2]
[338833831,1726933515904,150.0,0.00011947,2]
[338833832,1726933519071,150.0,0.00011688,2]
[338833833,1726933520614,29014.58,0.00011797,2]
[338833834,1726933527473,150.0,0.00011688,2]
[338833835,1726933531324,150.0,0.00021679,120]
[338833836,1726933543379,840.0,0.00011704,2]
[338833838,1726933563777,961.77,0.00011707,2]
[338833839,1726933591317,150.0,0.00017867,120]
[338833840,1726933613932,332.8,0.00011723,2]
[338833841,1726933626498,263.85,0.00011738,2]
[338833842,1726933633227,939.0,0.00013157,120]
[338833843,1726933633720,939.0,0.00013147,120]
[338833844,1726933634300,939.0,0.00013137,120]
[338833845,1726933634690,939.0,0.0001451,120]
[338833846,1726933635381,939.0,0.000145,120]
[338833847,1726933635680,939.0,0.0001449,120]
[338833848,1726933636238,939.0,0.0001451,120]
[338833849,1726933636751,939.0,0.000145,120]
[338833850,1726933637296,939.0,0.00014989,120]
[338833851,1726933637763,947.0,0.00014979,120]
[338833853,1726933666636,167.55,0.00011682,2]
[338833854,1726933698068,250.0,0.00011704,2]
[338833855,1726933710873,150.0,0.00021265,120]
[338833856,1726933747112,-150.0,0.00012059,2]
[338833857,1726933747134,-183.41923499,0.00012063,2]
[338833858,1726933747156,-150.0,0.00012121,2]
[338833859,1726933747176,-328.0,0.00012144,2]
[338833860,1726933747198,-300.0,0.00012162,2]
[338833861,1726933747220,-49563.70750501,0.00012163,2]
[338833862,1726933767479,200.0,0.00011743,2]
[338833865,1726933831387,-295.2,0.00012087,2]
[338833866,1726933831396,-282.42097672,0.00012107,2]
[338833867,1726933831406,-250.0,0.00012164,2]
[338833868,1726933831415,-150.0,0.00012207,2]
[338833869,1726933831425,-150.0,0.00012244,2]
[338833870,1726933831434,-150.0,0.00012247,2]
[338833871,1726933831443,-295.2,0.0001226,2]
[338833872,1726933831453,-150.0,0.0001227,2]
[338833873,1726933831462,-2882.78,0.0001227,2]
[338833874,1726933831471,-295.2,0.00012271,2]
[338833875,1726933831481,-150.99,0.00012271,2]
[338833876,1726933831490,-499.99,0.00012271,2]
[338833877,1726933831500,-150.99,0.00012271,2]
[338833878,1726933831509,-6056.69,0.00012282,2]
[338833879,1726933831518,-680.66,0.00012291,2]
[338833880,1726933831528,-200.0,0.000123,4]
[338833881,1726933831537,-295.2,0.00012334,2]
[338833882,1726933831547,-295.2,0.00012334,2]
[338833883,1726933831556,-1056.48,0.00012341,2]
[338833884,1726933831565,-3496.79,0.00012344,2]
[338833885,1726933831574,-299.99,0.00012363,2]
[338833886,1726933831583,-500.0,0.000124,4]
[338833887,1726933831592,-150.0,0.0001243,2]
[338833888,1726933831602,-150.0,0.00012467,2]
[338833889,1726933831611,-700.0,0.000125,4]
[338833890,1726933831620,-150.0,0.00012553,2]
[338833891,1726933831629,-295.2,0.0001259,2]
[338833892,1726933831638,-1000.0,0.000126,4]
[338833893,1726933831648,-150.0,0.00012615,2]
[338833894,1726933831658,-298.16768616,0.00012631,2]
[338833895,1726933831667,-295.2,0.0001269,2]
[338833896,1726933831676,-1300.0,0.000127,4]
[338833897,1726933831686,-150.0,0.00012727,2]
[338833898,1726933831695,-295.2,0.0001279,2]
[338833899,1726933831704,-295.2,0.0001279,2]
[338833900,1726933831714,-658.0173,0.000128,2]
[338833902,1726933831723,-274.2016,0.000128,2]
[338833904,1726933831732,-4389.75276593,0.000128,2]
[338833906,1726933831742,-200.0,0.000128,4]
[338833907,1726933831751,-150.0,0.00012801,2]
[338833908,1726933831761,-486.024,0.00012869,2]
[338833909,1726933831770,-153.669,0.00012869,2]
[338833910,1726933831779,-150.0,0.0001287,2]
[338833911,1726933831788,-295.2,0.00012876,2]
[338833912,1726933831799,-187.7597,0.00012899,2]
[338833913,1726933831808,-1636.9819,0.00012899,2]
[338833914,1726933831817,-6799.02535505,0.000129,2]
[338833915,1726933831832,-11699.84907785,0.000129,2]
[338833916,1726933831843,-5003.70250805,0.000129,2]
[338833917,1726933831855,-4250.50142563,0.000129,2]
[338833918,1726933831866,-4066.53555777,0.000129,2]
[338833919,1726933831876,-5775.29728681,0.000129,2]
[338833920,1726933831887,-1875.42835547,0.000129,2]
[338833921,1726933831898,-388.88750137,0.000129,2]
[338833922,1726933831910,-3206.11771593,0.000129,2]
[338833923,1726933831922,-13608.47805228,0.000129,2]
[338833924,1726933831933,-16853.4,0.000129,2]
[338833925,1726933831944,-3099.91875805,0.000129,2]
[338833926,1726933831955,-368.7704374,0.000129,2]
[338833927,1726933831965,-117.17706834,0.000129,2]
[338833928,1726933831974,-2961.38225211,0.000129,2]
[338833929,1726933831986,-450.037073,0.000129,2]
[338833930,1726933831997,-261.15578167,0.000129,2]
[338833931,1726933832009,-517.85068696,0.000129,2]
[338833932,1726933832020,-1117.22136038,0.000129,2]
[338833933,1726933832031,-3185.02759438,0.000129,2]
[338833934,1726933832042,-1074.32,0.000129,2]
[338833935,1726933832053,-2375.16069498,0.000129,2]
[338833936,1726933832064,-3244.15518752,0.000129,2]
[338833937,1726933832075,-428.058569,0.000129,2]
[338833938,1726933832084,-3890.0665978,0.000129,2]
[338833939,1726933832095,-4796.58478385,0.000129,2]
[338833940,1726933832106,-2392.3966544,0.000129,2]
[338833941,1726933832116,-1169.89726395,0.000129,2]
[338833942,1726933832126,-1000.0,0.000129,2]
[338833943,1726933832135,-200.0,0.000129,4]
[338833944,1726933832144,-1601.12192516,0.000129,2]
[338833945,1726933832154,-210.55132363,0.000129,2]
[338833946,1726933832163,-3386.27557811,0.000129,2]
[338833947,1726933832172,-388.92563463,0.00012973,2]
[338833948,1726933832181,-500.0,0.00012973,2]
[338833949,1726933832190,-175.5,0.00012985,2]
[338833950,1726933832200,-1000.0,0.00012986,2]
[338833951,1726933832209,-150.0,0.00012986,2]
[338833952,1726933832219,-150.0,0.00012986,2]
[338833953,1726933832227,-150.0,0.00012986,2]
[338833954,1726933832237,-150.00000001,0.00012986,2]
[338833955,1726933832246,-157.33,0.0001299,2]
[338833956,1726933832255,-157.33,0.0001299,2]
[338833957,1726933832263,-157.33,0.0001299,2]
[338833958,1726933832272,-500.0,0.00012999,2]
[338833959,1726933832282,-500.0,0.00012999,2]
[338833960,1726933832291,-500.0,0.00012999,2]
[338833961,1726933832300,-500.0,0.00012999,2]
[338833962,1726933832309,-550.0,0.00012999,2]
[338833963,1726933832318,-500.0,0.00012999,2]
[338833964,1726933832327,-500.0,0.00012999,2]
[338833965,1726933832336,-500.0,0.00012999,2]
[338833966,1726933832345,-500.0,0.00012999,2]
[338833967,1726933832354,-500.0,0.00012999,2]
[338833968,1726933832363,-500.0,0.00012999,2]
[338833969,1726933832372,-337.415803,0.00012999,2]
[338833970,1726933832381,-369.45606584,0.00012999,2]
[338833971,1726933832390,-500.0,0.00012999,2]
[338833972,1726933832399,-500.0,0.00012999,2]
[338833973,1726933832409,-500.0,0.00012999,2]
[338833974,1726933832418,-500.0,0.00012999,2]
[338833975,1726933832428,-500.0,0.00012999,2]
[338833976,1726933832437,-202.45880839,0.00012999,2]
[338833977,1726933832446,-373.12928111,0.00012999,2]
[338833978,1726933832456,-213.55900717,0.00013,2]
[338833979,1726933832465,-231991.73834022,0.00013,2]
[338833980,1726933832477,-7352.47094861,0.00013,2]
[338833981,1726933832492,-297.99594133,0.00013,2]
[338833988,1726933837582,-4538.33381839,0.00013,2]
[338833989,1726933837596,-628182.83187327,0.00013,2]
[338833990,1726933837606,-332505.45413376,0.00013,2]
[338833991,1726933837740,-301.11415239,0.00013,2]
[338833992,1726933837754,-486.81726003,0.00013,2]
[338833993,1726933837769,-767.54721912,0.00013,2]
[338833994,1726933837793,-28119.1141531,0.00013,2]
[338833995,1726933837807,-7544.50302701,0.00013,2]
[338833996,1726933837821,-6904.82972179,0.00013,2]
[338833997,1726933837848,-257.82237684,0.00013,2]
[338833998,1726933837862,-1173.65274454,0.00013,2]
[338833999,1726933837875,-280.407,0.00013,2]
[338834000,1726933837887,-16602.28958187,0.00013,2]
[338834001,1726933837901,-500.56436029,0.00013,2]
[338834002,1726933837914,-716.53939924,0.00013,2]